bitfinex/quotes_BTCUSD_20251224
["timestamp","ask_amount","ask_price","bid_price","bid_amount"]
[1766591106096,0.000549,87106.0,87105.0,0.01148039]
[1766591106318,0.01156,87113.0,87107.0,0.01148013]
[1766591106550,0.11775,87117.0,87112.0,0.01147947]
[1766591106777,0.04592,87123.0,87112.0,0.01147947]
[1766591106778,0.01156,87121.0,87114.0,0.01147921]
[1766591106995,0.12931,87127.0,87118.0,0.01147868]
[1766591107238,0.12931,87127.0,87119.0,0.01147855]
[1766591107446,0.000549,87119.0,87114.0,0.06887507]
[1766591107691,0.000549,87119.0,87116.0,0.06887358]
[1766591107955,0.12931,87127.0,87114.0,0.01147921]
[1766591108158,0.01147763,87126.0,87115.0,0.06887444]
[1766591108375,0.12931,87127.0,87115.0,0.01147907]
[1766591108581,0.12931,87127.0,87116.0,0.01147894]
[1766591108787,0.00047253,87125.0,87116.0,0.06887362]
[1766591108996,0.06886663,87125.0,87113.0,0.01147934]
[1766591109242,0.01147789,87124.0,87113.0,0.01147934]
[1766591109447,0.08042602,87126.0,87114.0,0.01147921]
[1766591109658,0.02303763,87126.0,87114.0,0.01147921]
[1766591109862,0.06886466,87128.0,87116.0,0.01147894]
[1766591109863,0.06886425,87128.0,87116.0,0.01147894]
[1766591110072,0.01147736,87128.0,87117.0,0.01147881]
[1766591110281,0.0114771,87130.0,87119.0,0.06887118]
[1766591110464,0.12931,87131.0,87120.0,0.01147842]
[1766591110702,0.14078697,87131.0,87119.0,0.06887103]
[1766591110942,0.0087209,87131.0,87124.0,0.01147789]
[1766591111155,0.11775,87144.0,87129.0,0.05738612]
[1766591111156,0.01156,87137.0,87129.0,0.05738612]
[1766591111365,0.00010624,87137.0,87129.0,0.01147723]
[1766591111571,0.00010624,87137.0,87129.0,0.06886332]
[1766591111781,0.00010624,87137.0,87127.0,0.01147749]
[1766591112003,0.00010624,87137.0,87128.0,0.01147736]
[1766591112233,0.000549,87128.0,87124.0,0.06886725]
[1766591112464,0.000549,87128.0,87122.0,0.01156]
[1766591112674,0.01147657,87134.0,87122.0,0.01156]
[1766591112675,0.05738431,87132.0,87122.0,0.01156]
[1766591112911,0.06886114,87132.0,87122.0,0.01156]
[1766591113076,0.01147697,87131.0,87122.0,0.01156]
[1766591113604,0.11775,87131.0,87115.0,0.01147907]
[1766591113808,0.000549,87122.0,87115.0,0.01156]
[1766591114009,0.000549,87122.0,87113.0,0.01156]
[1766591114182,0.00025201,87118.0,87113.0,0.01156]
[1766591114413,0.17513621,87129.0,87117.0,0.01147881]
[1766591114616,0.01156,87130.0,87123.0,0.01147802]
[1766591114939,0.00010624,87137.0,87129.0,0.01147723]
[1766591115133,0.000549,87129.0,87126.0,0.01147763]
[1766591115449,0.000549,87129.0,87127.0,0.05738749]
[1766591115849,0.01156,87130.0,87126.0,0.01147763]
[1766591116057,0.00055,87126.0,87120.0,0.04367806]
[1766591116379,0.01156,87130.0,87120.0,0.04367806]
[1766591116380,0.01156,87130.0,87120.0,0.03219964]
[1766591116535,0.01156,87130.0,87120.0,0.04367806]
[1766591116945,0.01156,87130.0,87121.0,0.05739144]
[1766591117153,0.01156,87130.0,87126.0,0.01147763]
[1766591117378,0.000549,87126.0,87120.0,0.03219964]
[1766591117574,0.000549,87126.0,87120.0,0.04367806]
[1766591117815,0.000549,87126.0,87120.0,0.03219964]
[1766591118089,0.0230371,87130.0,87120.0,0.03219964]
[1766591118267,0.01156,87130.0,87120.0,0.03219964]
[1766591118463,0.01156,87130.0,87120.0,0.04367806]
[1766591118838,0.01156,87130.0,87125.0,0.01147776]
[1766591119043,0.01156,87130.0,87126.0,0.01147763]
[1766591119265,0.01156,87130.0,87121.0,0.01147828]
[1766591119266,0.000549,87126.0,87121.0,0.01147828]
[1766591119511,0.000549,87126.0,87118.0,0.01156]
[1766591119633,0.01147723,87129.0,87118.0,0.01156]
[1766591120283,0.00025198,87126.0,87120.0,0.03165064]
[1766591120988,0.00025198,87126.0,87103.0,0.0436803]
[1766591120989,0.01147855,87119.0,87103.0,0.0436803]
[1766591121143,0.01147855,87119.0,87104.0,0.02304052]
[1766591121144,0.12922868,87118.0,87104.0,0.02304052]
[1766591121350,0.11775,87116.0,87104.0,0.02304052]
[1766591121576,0.01147868,87118.0,87101.0,0.05740462]
[1766591121577,0.01147921,87114.0,87101.0,0.05740462]
[1766591121775,0.05739803,87111.0,87100.0,0.04375964]
[1766591121934,0.11775,87113.0,87100.0,0.05524069]
[1766591122139,0.11775,87113.0,87102.0,0.01148079]
[1766591122406,0.11775,87113.0,87102.0,0.06888458]
[1766591122570,0.11775,87113.0,87103.0,0.01148066]
[1766591122932,0.11775,87113.0,87105.0,0.01148039]
[1766591123095,0.11775,87113.0,87105.0,0.05740163]
[1766591123258,0.11775,87113.0,87107.0,0.01148013]
[1766591123675,0.11775,87113.0,87103.0,0.06888374]
[1766591124088,0.11775,87113.0,87104.0,0.01148052]
[1766591124502,0.01156,87115.0,87105.0,0.01148039]
[1766591124703,0.01147631,87136.0,87121.0,0.01147828]
[1766591124918,0.01156,87133.0,87125.0,0.06886593]
[1766591125139,0.01156,87133.0,87125.0,0.01147776]
[1766591125504,0.01156,87133.0,87122.0,0.06886847]
[1766591125702,0.01156,87133.0,87124.0,0.01147789]
[1766591125977,0.01156,87133.0,87125.0,0.01147776]
[1766591126198,0.01156,87133.0,87123.0,0.01147802]
[1766591126477,0.01156,87133.0,87126.0,0.01147763]
[1766591126684,6.484e-05,87132.0,87126.0,0.06886548]
[1766591126916,0.05744944,87132.0,87087.0,0.45930656]
[1766591127059,0.01156,87131.0,87123.0,0.01147802]
[1766591127262,0.01156,87131.0,87124.0,0.01147789]
[1766591127462,0.01156,87131.0,87123.0,0.01147802]
[1766591127687,0.00557389,87131.0,87123.0,0.24103832]
[1766591127885,0.00010624,87137.0,87128.0,0.01147736]
[1766591128045,0.01156,87134.0,87128.0,0.01147736]
[1766591128245,0.01156,87134.0,87123.0,0.01147802]
[1766591128445,0.01156,87134.0,87125.0,0.06886633]
[1766591128653,0.01156,87134.0,87125.0,0.01147776]
[1766591128853,0.01156,87134.0,87124.0,0.06886729]
[1766591129049,0.01156,87134.0,87123.0,0.06886807]
[1766591129437,0.01156,87134.0,87124.0,0.01147789]
[1766591130032,0.01156,87134.0,87123.0,0.06886807]
[1766591130159,0.01156,87134.0,87124.0,0.01147789]
[1766591130581,0.01156,87134.0,87124.0,0.06886707]
[1766591131143,0.02303657,87134.0,87122.0,0.01147815]
[1766591131415,0.01147723,87129.0,87117.0,0.08043279]
[1766591131728,0.01147683,87132.0,87120.0,0.06887038]
[1766591131917,0.06886079,87133.0,87122.0,0.01147815]
[1766591132115,0.06886079,87133.0,87121.0,0.05739135]
[1766591132116,0.01147683,87132.0,87121.0,0.06886963]
[1766591132320,0.0114767,87133.0,87122.0,0.01147815]
[1766591132499,0.0114767,87133.0,87117.0,0.08043235]
[1766591132500,0.000549,87122.0,87117.0,0.08043235]
[1766591132820,0.12402,87121.0,87105.0,0.19442]
[1766591133071,0.01156,87125.0,87114.0,0.01147921]
[1766591133278,0.01156,87130.0,87116.0,0.01147894]
[1766591133490,0.01147723,87129.0,87116.0,0.01147894]
[1766591133705,0.01147723,87129.0,87117.0,0.05739405]
[1766591133926,0.00025195,87134.0,87119.0,0.24104959]
[1766591134133,0.00025195,87134.0,87123.0,0.01147802]
[1766591134341,0.01147683,87132.0,87120.0,0.01147842]
[1766591134513,0.01147683,87132.0,87116.0,0.01147894]
[1766591134514,0.0573863,87129.0,87116.0,0.01147894]
[1766591134680,0.01156,87132.0,87124.0,0.01147789]
[1766591134890,0.01147881,87117.0,87105.0,0.1485]
[1766591135088,0.01147881,87117.0,87104.0,0.01148052]
[1766591135089,0.01147894,87116.0,87104.0,0.01148052]
[1766591135293,0.01147921,87114.0,87103.0,0.01148066]
[1766591135514,0.01147894,87116.0,87105.0,0.01148039]
[1766591135738,0.01147907,87115.0,87104.0,0.01148052]
[1766591135951,0.05739724,87113.0,87100.0,0.06896467]
[1766591136164,0.000549,87104.0,87101.0,0.06888499]
[1766591136373,0.000549,87104.0,87099.0,0.01148118]
[1766591136577,0.06887894,87110.0,87098.0,0.02304131]
[1766591136784,0.01156,87111.0,87101.0,0.01148092]
[1766591137017,0.01156,87111.0,87102.0,0.06888452]
[1766591137382,0.01156,87111.0,87103.0,0.01148066]
[1766591137528,0.01156,87111.0,87104.0,0.06888312]
[1766591137732,0.01156,87111.0,87107.0,0.01148013]
[1766591137931,0.01156,87111.0,87110.0,0.05739869]
[1766591138139,0.01156,87111.0,87108.0,0.06887991]
[1766591138351,0.01156,87111.0,87108.0,0.01148]
[1766591138550,0.01156,87111.0,87104.0,0.01148052]
[1766591138754,0.13515763,87126.0,87103.0,0.10743]
[1766591139076,0.01156,87125.0,87114.0,0.06887491]
[1766591139260,0.13524,87125.0,87114.0,0.06887491]
[1766591139591,0.12368,87124.0,87114.0,0.01147921]
[1766591139736,0.12368,87124.0,87113.0,0.06887603]
[1766591139943,0.000549,87113.0,87104.0,0.02304052]
[1766591140199,0.000549,87113.0,87104.0,0.01156]
[1766591140407,0.06887389,87117.0,87106.0,0.01148026]
[1766591140618,0.01147881,87117.0,87106.0,0.01148026]
[1766591140833,0.12368,87117.0,87106.0,0.01148026]
[1766591140980,0.0688755,87114.0,87104.0,0.01156]
[1766591141313,0.01147973,87110.0,87102.0,0.00035462]
[1766591141514,0.1810786,87111.0,87102.0,0.00035462]
[1766591141752,0.1351596,87111.0,87102.0,0.00035462]
[1766591141937,0.12368,87111.0,87102.0,0.00035462]
[1766591142444,0.00011,87114.0,87111.0,0.000549]
[1766591142697,0.01156,87113.0,87110.0,0.06887835]
[1766591142914,0.01156,87113.0,87112.0,0.05739737]
[1766591143143,0.06886396,87129.0,87113.0,0.01147934]
[1766591143366,0.02303736,87128.0,87116.0,0.01147894]
[1766591143586,0.02303736,87128.0,87114.0,0.01147921]
[1766591143587,0.05738758,87127.0,87114.0,0.01147921]
[1766591143825,0.01147763,87126.0,87115.0,0.01147907]
[1766591144070,0.12368,87130.0,87110.0,0.12426]
[1766591144071,0.01147591,87139.0,87127.0,0.01147749]
[1766591144287,0.01156,87138.0,87129.0,0.01147723]
[1766591144454,0.01156,87138.0,87129.0,0.06886335]
[1766591144663,0.01156,87138.0,87122.0,0.12426]
[1766591144866,0.000549,87129.0,87121.0,0.01147828]
[1766591145023,0.000549,87129.0,87122.0,0.01147815]
[1766591145223,0.02303604,87138.0,87119.0,0.01156]
[1766591145224,0.01147697,87131.0,87119.0,0.02303855]
[1766591145434,0.06894026,87138.0,87125.0,0.01147776]
[1766591145629,0.06894026,87138.0,87125.0,0.06886656]
[1766591145831,0.05738113,87137.0,87125.0,0.01147776]
[1766591146075,0.01147644,87135.0,87119.0,0.02303855]
[1766591146230,0.12393195,87134.0,87121.0,0.01147828]
[1766591146436,0.000549,87121.0,87119.0,0.01156]
[1766591146882,0.01147723,87129.0,87119.0,0.01156]
[1766591147337,0.01147736,87128.0,87119.0,0.01156]
[1766591147577,0.01147723,87129.0,87119.0,0.01156]
[1766591147764,0.13524,87131.0,87122.0,0.01147815]
[1766591147962,0.13524,87131.0,87121.0,0.01147828]
[1766591148166,0.13524,87131.0,87122.0,0.01147815]
[1766591148375,0.13524,87131.0,87121.0,0.01147828]
[1766591148575,0.13524,87131.0,87122.0,0.01147815]
[1766591148854,0.00025195,87134.0,87127.0,0.05738732]
[1766591149064,0.01156,87148.0,87137.0,0.06885703]
[1766591149308,0.01147499,87146.0,87137.0,0.00035462]
[1766591149562,0.01147512,87145.0,87137.0,6.2e-07]
[1766591149915,0.02303512,87145.0,87137.0,6.2e-07]
[1766591150118,0.01147525,87144.0,87137.0,6.2e-07]
[1766591150328,0.03219964,87149.0,87137.0,0.05738101]
[1766591150583,0.01156,87148.0,87138.0,0.12426]
[1766591150821,0.02303473,87148.0,87138.0,0.12426]
[1766591151002,0.01156,87148.0,87138.0,0.12426]
[1766591151213,0.01147486,87147.0,87138.0,0.12426]
[1766591151422,0.08040863,87148.0,87138.0,0.12426]
[1766591151620,0.01147486,87147.0,87138.0,0.12426]
[1766591151815,0.02303473,87148.0,87138.0,0.12426]
[1766591152243,0.02303473,87148.0,87138.0,0.13573604]
[1766591152244,0.01156,87148.0,87138.0,0.13573604]
[1766591152442,0.02303473,87148.0,87138.0,0.12426]
[1766591152980,0.01156,87148.0,87138.0,0.12426]
[1766591153183,0.01147512,87145.0,87137.0,0.25000062]
[1766591153327,5e-06,87138.0,87137.0,0.37426062]
[1766591153538,0.01156,87148.0,87142.0,0.05737751]
[1766591153738,0.01156,87148.0,87139.0,0.05737896]
[1766591153938,0.01156,87148.0,87137.0,0.49099778]
[1766591154138,0.01156,87148.0,87138.0,0.05738024]
[1766591154346,0.01156,87148.0,87140.0,0.01147578]
[1766591154724,0.00025191,87142.0,87141.0,0.05737827]
[1766591154928,9.1e-07,87142.0,87140.0,0.06885443]
[1766591155267,9.1e-07,87142.0,87137.0,0.25000062]
[1766591155441,9.1e-07,87142.0,87137.0,0.24945062]
[1766591155442,0.000256,87140.0,87137.0,0.24945062]
[1766591155644,0.01147315,87160.0,87149.0,0.0114746]
[1766591155887,0.01156,87159.0,87149.0,0.06884753]
[1766591156090,0.01156,87159.0,87150.0,0.01147446]
[1766591156671,0.01156,87158.0,87147.0,0.05737376]
[1766591156930,0.01156,87158.0,87148.0,0.01147473]
[1766591157149,0.01156,87158.0,87151.0,0.01147433]
[1766591157507,0.01156,87158.0,87150.0,0.06884617]
[1766591157671,0.01156,87158.0,87151.0,0.01147433]
[1766591157870,0.01156,87158.0,87152.0,0.06884511]
[1766591158087,0.01156,87158.0,87155.0,0.06884237]
[1766591158294,0.00011,87180.0,87171.0,0.0114717]
[1766591158513,0.00011,87180.0,87168.0,0.01147209]
[1766591158514,0.00011,87180.0,87170.0,0.01147183]
[1766591158687,0.00011,87180.0,87168.0,0.01156]
[1766591159083,0.01158052,87180.0,87168.0,0.01156]
[1766591159295,0.01147223,87167.0,87144.0,0.01147525]
[1766591159606,0.01147223,87167.0,87100.0,0.6598764]
[1766591159607,0.01147249,87165.0,87148.0,0.11506]
[1766591159779,0.01147275,87163.0,87148.0,0.11506]
[1766591159974,0.0114746,87149.0,87137.0,0.36451062]
[1766591160174,0.01147763,87126.0,87108.0,0.01148]
[1766591160399,0.01147802,87123.0,87104.0,0.12654052]
[1766591160602,0.01147947,87112.0,87109.0,0.01156]
[1766591160817,0.04592,87144.0,87096.0,0.06888933]
[1766591160818,0.000549,87109.0,87096.0,0.11506]
[1766591160992,0.000549,87109.0,87101.0,0.01148092]
[1766591161192,0.000549,87109.0,87097.0,0.24118903]
[1766591161193,0.01148,87108.0,87097.0,0.01156]
[1766591161433,0.01148052,87104.0,87097.0,0.01156]
[1766591161617,0.00055,87097.0,87094.0,0.00011]
[1766591161832,0.01148105,87100.0,87094.0,0.00011]
[1766591162033,0.01156,87105.0,87096.0,0.01148158]
[1766591162211,0.01156,87105.0,87094.0,0.00011]
[1766591162212,0.01156,87105.0,87094.0,0.06900085]
[1766591162442,0.01156,87105.0,87096.0,0.01148158]
[1766591162841,0.01156,87106.0,87099.0,0.01148118]
[1766591163042,0.01156,87106.0,87094.0,0.00011]
[1766591163243,0.01148092,87101.0,87094.0,0.00011]
[1766591163494,0.01148105,87100.0,87094.0,0.00011]
[1766591163693,0.01148092,87101.0,87094.0,0.00011]
[1766591164116,0.06888509,87102.0,87094.0,0.00011]
[1766591164453,0.01148092,87101.0,87094.0,0.00011]
[1766591164877,0.06888945,87097.0,87094.0,0.00011]
[1766591165210,0.06888945,87097.0,87089.0,0.01156]
[1766591165211,0.00011,87094.0,87089.0,0.01156]
[1766591165417,0.00011,87094.0,87091.0,0.01148224]
[1766591165587,0.00035412,87108.0,87102.0,0.01148079]
[1766591165921,0.02303947,87112.0,87101.0,0.01148092]
[1766591166071,0.05739953,87109.0,87096.0,0.02304158]
[1766591166269,0.01147842,87120.0,87105.0,0.01148039]
[1766591166605,0.01147973,87110.0,87101.0,0.0001063]
[1766591166908,0.01156,87116.0,87101.0,0.01158722]
[1766591167108,0.01147921,87114.0,87101.0,0.06899157]
[1766591167267,0.02303894,87116.0,87105.0,0.01148039]
[1766591167476,0.02303894,87116.0,87106.0,0.01148026]
[1766591167477,0.01156,87116.0,87106.0,0.01148026]
[1766591167677,0.01147776,87125.0,87110.0,0.01147973]
[1766591167884,0.01147763,87126.0,87116.0,0.00011]
[1766591168215,0.06886606,87126.0,87111.0,0.06887725]
[1766591168376,0.0689471,87128.0,87113.0,0.01147934]
[1766591168599,0.00011,87118.0,87114.0,0.06887511]
[1766591168803,0.00011,87118.0,87116.0,0.05739462]
[1766591169144,0.01156,87133.0,87124.0,0.06886686]
[1766591169286,0.01147683,87132.0,87120.0,0.01147842]
[1766591169492,0.01156,87133.0,87123.0,0.01147802]
[1766591169691,0.01156,87133.0,87121.0,0.01147828]
[1766591169692,0.01156,87133.0,87122.0,0.01147815]
[1766591169887,0.01158631,87136.0,87126.0,0.05738806]
[1766591169888,0.00011,87136.0,87126.0,0.05738806]
[1766591170093,0.01147486,87147.0,87134.0,0.01147657]
[1766591170455,0.000549,87134.0,87124.0,0.02303789]
[1766591170607,0.000549,87134.0,87124.0,0.01156]
[1766591170806,0.000549,87134.0,87127.0,0.01147749]
[1766591171028,0.13987591,87139.0,87125.0,0.06886645]
[1766591171198,0.01156,87139.0,87126.0,0.01147763]
[1766591171398,0.01156,87139.0,87135.0,0.01147644]
[1766591171597,0.01147486,87147.0,87132.0,0.01147683]
[1766591171818,0.01147486,87147.0,87133.0,0.0114767]
[1766591171819,0.08041017,87146.0,87133.0,0.0114767]
[1766591172025,0.01147525,87144.0,87132.0,0.01147683]
[1766591172225,0.02303539,87143.0,87131.0,0.06886152]
[1766591172426,0.02303539,87143.0,87132.0,0.01147683]
[1766591172629,0.01156,87143.0,87132.0,0.01147683]
[1766591172848,0.02303539,87143.0,87130.0,0.0114771]
[1766591173312,0.02303539,87143.0,87131.0,0.01147697]
[1766591173509,0.01147552,87142.0,87130.0,0.0114771]
[1766591173714,0.01147591,87139.0,87129.0,0.00011]
[1766591174212,0.01147552,87142.0,87130.0,0.0114771]
[1766591174416,0.02303539,87143.0,87131.0,0.01147697]
[1766591174829,0.01156,87143.0,87132.0,0.01147683]
[1766591175045,0.02303539,87143.0,87131.0,0.06886176]
[1766591175578,0.000549,87131.0,87129.0,0.00011]
[1766591175877,0.01156,87141.0,87129.0,0.11517]
[1766591176076,0.01147657,87134.0,87129.0,0.00011]
[1766591176223,0.01156,87141.0,87129.0,0.00011]
[1766591176584,0.02303565,87141.0,87129.0,0.00011]
[1766591177000,0.0114767,87133.0,87124.0,0.01156]
[1766591177282,0.05738352,87135.0,87124.0,0.01156]
[1766591177283,0.01147644,87135.0,87124.0,0.01156]
[1766591177499,0.01147631,87136.0,87124.0,0.02303789]
[1766591177778,0.01147644,87135.0,87124.0,0.01156]
[1766591177981,0.06885799,87136.0,87124.0,0.02303789]
[1766591178194,0.06885772,87137.0,87124.0,0.02303789]
[1766591178397,0.01147644,87135.0,87124.0,0.01156]
[1766591178735,0.01147618,87137.0,87124.0,0.08042679]
[1766591178982,0.01147539,87143.0,87128.0,0.01147736]
[1766591179188,0.08041456,87141.0,87127.0,0.06886432]
[1766591179486,0.01156,87141.0,87129.0,0.01147723]
[1766591179689,0.01156,87141.0,87130.0,0.0114771]
[1766591179845,0.01156,87141.0,87133.0,0.0114767]
[1766591180050,0.01156,87141.0,87132.0,0.01147683]
[1766591180252,0.01156,87141.0,87133.0,0.0114767]
[1766591180453,0.01156,87141.0,87131.0,0.05738433]
[1766591180454,0.01156,87141.0,87131.0,0.0688613]
[1766591180658,0.01156,87141.0,87132.0,0.01147683]
[1766591180855,0.01156,87141.0,87132.0,0.06886045]
[1766591181062,0.01156,87141.0,87132.0,0.01147683]
[1766591181459,0.01156,87140.0,87132.0,0.06886078]
[1766591181886,0.00010624,87147.0,87140.0,0.000109]
[1766591182085,0.01167,87149.0,87140.0,0.000109]
[1766591182287,1.1e-07,87146.0,87136.0,0.11506]
[1766591182454,1.1e-07,87146.0,87139.0,0.05737951]
[1766591182799,1.1e-07,87146.0,87136.0,0.11516624]
[1766591183002,0.0114751,87146.0,87136.0,0.11428275]
[1766591183209,1.1e-07,87146.0,87136.0,0.11428275]
[1766591183369,0.0114751,87146.0,87136.0,0.11428275]
[1766591183571,1.1e-07,87146.0,87136.0,0.11428275]
[1766591183995,0.0114751,87146.0,87136.0,0.11428275]
[1766591184313,0.01156,87149.0,87136.0,0.11428275]
[1766591184514,0.0573743,87148.0,87136.0,0.11428275]
[1766591184723,0.01147486,87147.0,87136.0,0.11428275]
[1766591184930,0.01147499,87146.0,87136.0,0.11428275]
[1766591185102,0.05737803,87142.0,87136.0,0.00010624]
[1766591185305,0.01147525,87144.0,87136.0,0.00010624]
[1766591185505,0.00011,87146.0,87136.0,0.00010624]
[1766591185702,0.46101543,87165.0,87136.0,0.09701624]
[1766591185703,0.01147486,87147.0,87136.0,0.09701624]
[1766591185951,0.05737366,87148.0,87136.0,0.09701624]
[1766591185952,0.01147539,87143.0,87137.0,0.00011]
[1766591186072,0.01147512,87145.0,87137.0,0.00011]
[1766591186496,0.0688506,87146.0,87137.0,0.00011]
[1766591186717,0.06885674,87139.0,87126.0,0.01167]
[1766591186915,0.18569514,87141.0,87128.0,0.01147736]
[1766591187075,0.11694618,87141.0,87129.0,0.01147723]
[1766591187276,0.0573795,87140.0,87126.0,0.06905809]
[1766591187476,0.18580071,87141.0,87127.0,0.06886486]
[1766591187701,0.01147578,87140.0,87127.0,0.06886486]
[1766591187898,0.01147578,87140.0,87128.0,0.01147736]
[1766591188133,0.01147604,87138.0,87126.0,0.08053572]
[1766591188329,0.0688555,87139.0,87127.0,0.01147749]
[1766591188554,0.01147578,87140.0,87127.0,0.01147749]
[1766591188735,0.01147591,87139.0,87127.0,0.01147749]
[1766591188934,0.01147591,87139.0,87126.0,0.08053454]
[1766591189148,0.01147591,87139.0,87127.0,0.01147749]
[1766591189445,0.01147578,87140.0,87127.0,0.01147749]
[1766591189621,0.01166618,87141.0,87132.0,0.01147683]
[1766591189828,0.01156,87142.0,87132.0,0.01147683]
[1766591189991,0.01156,87142.0,87133.0,0.0573831]
[1766591190188,0.01156,87142.0,87133.0,0.0688598]
[1766591190393,0.01156,87142.0,87132.0,0.00010618]
[1766591192145,0.01156,87142.0,87132.0,0.01158301]
[1766591192582,0.0688502,87146.0,87133.0,0.0114767]
[1766591192722,0.01156,87142.0,87133.0,0.0114767]
[1766591193137,0.01147604,87138.0,87132.0,0.00010618]
[1766591193337,0.01147618,87137.0,87132.0,0.00010618]
[1766591193661,0.01147657,87134.0,87119.0,0.01147855]
[1766591193796,0.11914,87132.0,87116.0,0.00011]
[1766591193992,0.11914,87122.0,87111.0,0.0114796]
[1766591194198,0.11914,87122.0,87115.0,0.01147907]
[1766591194372,0.11914,87122.0,87115.0,0.06887443]
[1766591194577,0.11914,87122.0,87113.0,0.0688757]
[1766591194915,0.11914,87122.0,87112.0,0.01147947]
[1766591195208,0.11914,87122.0,87111.0,0.0001063]
[1766591195356,0.13061815,87122.0,87111.0,0.0001063]
[1766591195557,0.13061842,87120.0,87111.0,0.0001063]
[1766591195761,0.01147855,87119.0,87111.0,0.0001063]
[1766591196012,0.11914,87120.0,87111.0,0.0001063]
[1766591196318,0.01147749,87127.0,87120.0,0.000549]
[1766591196476,0.01147749,87127.0,87116.0,0.03219964]
[1766591196477,0.01156,87126.0,87116.0,0.03219964]
[1766591198018,0.08042643,87126.0,87116.0,0.03219964]
[1766591198161,0.01147789,87124.0,87116.0,0.03219964]
[1766591198562,0.02303763,87126.0,87116.0,0.03219964]
[1766591198866,0.01156,87126.0,87117.0,0.01147881]
[1766591199066,0.01156,87126.0,87120.0,0.05739199]
[1766591199268,0.11914,87131.0,87123.0,0.01147802]
[1766591199489,0.11914,87131.0,87119.0,0.01147855]
[1766591199490,0.01156,87132.0,87126.0,0.01147763]
[1766591199708,0.00011,87136.0,87133.0,0.0114767]
[1766591199926,0.12047,87147.0,87138.0,0.01147604]
[1766591200085,0.01156,87146.0,87139.0,0.05737933]
[1766591200289,0.01156,87146.0,87140.0,0.01147578]
[1766591200626,0.01156,87145.0,87137.0,0.01147618]
[1766591200830,0.01156,87145.0,87136.0,0.01147631]
[1766591200831,0.01156,87145.0,87138.0,0.01147604]
[1766591201037,0.01166618,87145.0,87138.0,0.01124508]
[1766591201281,0.01166618,87145.0,87138.0,0.06862526]
[1766591201485,0.01166618,87145.0,87140.0,0.06885461]
[1766591201688,0.01166618,87145.0,87142.0,0.01147552]
[1766591201804,0.01166618,87145.0,87136.0,0.24100162]
[1766591201805,0.01166618,87145.0,87136.0,0.01147631]
[1766591202012,0.01111718,87145.0,87138.0,0.01147604]
[1766591202367,0.01111718,87145.0,87139.0,0.01147591]
[1766591202720,0.01156,87144.0,87140.0,0.01147578]
[1766591202920,0.01156,87144.0,87139.0,0.01147591]
[1766591203123,0.01156,87144.0,87134.0,0.01147657]
[1766591203323,0.01156,87144.0,87137.0,0.01147618]
[1766591203871,0.01156,87144.0,87137.0,0.06885695]
[1766591204076,0.01156,87144.0,87137.0,0.01147618]
[1766591204277,0.00010618,87145.0,87144.0,0.00055]
[1766591204479,0.00010618,87145.0,87142.0,0.06885251]
[1766591204657,0.00010618,87145.0,87142.0,0.01147552]
[1766591205240,0.00010618,87145.0,87136.0,0.01147631]
[1766591205575,0.00010618,87145.0,87139.0,0.05737934]
[1766591205741,0.00010618,87145.0,87142.0,0.01147552]
[1766591206145,0.00010618,87145.0,87141.0,0.06885382]
[1766591206344,0.00010618,87145.0,87141.0,0.01147565]
[1766591206547,0.000549,87141.0,87138.0,0.01147604]
[1766591206753,0.00010618,87145.0,87141.0,0.01147565]
[1766591207149,1.8e-07,87145.0,87141.0,0.01147565]
[1766591207984,1.8e-07,87145.0,87141.0,0.06841224]
[1766591208325,1.8e-07,87145.0,87142.0,0.01147552]
[1766591208529,1.8e-07,87145.0,87136.0,0.01147631]
[1766591208706,0.000106,87142.0,87134.0,0.02303657]
[1766591208876,0.000106,87142.0,87134.0,0.01156]
[1766591209255,0.01147539,87143.0,87134.0,0.01156]
[1766591210477,0.06885234,87143.0,87134.0,0.01156]
[1766591210751,0.120576,87134.0,87117.0,0.03918]
[1766591210895,0.18932956,87134.0,87124.0,0.00011]
[1766591211094,0.0688603,87133.0,87125.0,0.01156]
[1766591211297,0.01156,87142.0,87125.0,0.01156]
[1766591211298,0.14350552,87142.0,87125.0,0.01156]
[1766591211501,0.12047,87138.0,87126.0,0.06886573]
[1766591211885,0.13194604,87138.0,87126.0,0.01147763]
[1766591212065,0.000106,87126.0,87124.0,0.00011]
[1766591212266,0.01147776,87125.0,87120.0,0.01156]
[1766591212491,0.12047,87125.0,87114.0,0.01147921]
[1766591212689,0.12047,87122.0,87118.0,0.03219964]
[1766591212926,0.13203,87122.0,87118.0,0.03219964]
[1766591213100,0.14350815,87122.0,87118.0,0.03209364]
[1766591213299,0.13203,87122.0,87118.0,0.03209364]
[1766591213927,0.13203,87122.0,87107.0,0.01148013]
[1766591213928,0.12047,87119.0,87116.0,0.03219964]
[1766591214129,0.01156,87122.0,87115.0,2e-06]
[1766591214434,0.01156,87122.0,87119.0,0.000549]
[1766591214725,0.01156,87122.0,87115.0,2e-06]
[1766591215131,0.01156,87122.0,87112.0,0.036732]
[1766591215441,0.01147881,87117.0,87105.0,0.01156]
[1766591215612,0.13194921,87114.0,87100.0,0.01148105]
[1766591215814,0.01148,87108.0,87098.0,0.00011]
[1766591216017,0.08043386,87116.0,87108.0,0.000549]
[1766591216355,0.01156,87116.0,87111.0,0.036732]
[1766591216680,0.01156,87116.0,87111.0,0.036838]
[1766591216886,0.01156,87116.0,87114.0,0.036732]
[1766591217104,0.05739539,87115.0,87114.0,2e-06]
[1766591217310,0.01148013,87107.0,87098.0,0.00011]
[1766591217585,0.01148013,87107.0,87098.0,0.00046412]
[1766591218008,0.01148026,87106.0,87098.0,0.00046412]
[1766591218402,0.01148039,87105.0,87098.0,0.00046412]
[1766591218602,0.0688827,87105.0,87098.0,0.00046412]
[1766591218822,0.01148052,87104.0,87098.0,0.00046412]
[1766591219025,0.01148052,87104.0,87080.0,0.11763]
[1766591219026,0.01148158,87096.0,87080.0,0.11763]
[1766591219237,0.0003539,87096.0,87085.0,0.01156]
[1766591219815,0.0003539,87096.0,87085.0,0.02304303]
[1766591220016,0.01148184,87094.0,87085.0,0.01156]
[1766591220216,0.0003539,87096.0,87085.0,0.01156]
[1766591220424,0.01183548,87096.0,87085.0,0.01156]
[1766591220604,0.01148171,87095.0,87085.0,0.01156]
[1766591221009,0.0688937,87091.0,87085.0,0.01156]
[1766591221209,0.01148277,87087.0,87084.0,0.00011]
[1766591221409,0.01148224,87091.0,87084.0,0.00011]
[1766591221410,0.01148263,87088.0,87084.0,0.00011]
[1766591221632,0.4501369,87094.0,87083.0,0.01156]
[1766591221807,0.01148197,87093.0,87083.0,0.01156]
[1766591222013,0.01148211,87092.0,87083.0,0.01156]